bitfinex/quotes_SOLUSD_20260311
["timestamp","ask_amount","ask_price","bid_price","bid_amount"]
[1773255702820,1.42715197,87.819,87.777,11.392475]
[1773255703333,1.42715197,87.809,87.773,0.51781392]
[1773255703716,1.42715197,87.809,87.774,11.39289539]
[1773255704231,1.42715197,87.809,87.77,2.90457902]
[1773255704421,1.42715197,87.789,87.751,0.51768782]
[1773255704623,1.42715197,87.789,87.752,11.39575166]
[1773255705028,1.42715197,87.789,87.753,0.51768782]
[1773255706129,1.42715197,87.787,87.753,0.51768782]
[1773255707828,1.42715197,87.787,87.734,2.9]
[1773255708135,1.42715197,87.768,87.741,11.39718033]
[1773255710237,1.48907264,87.766,87.74,0.2]
[1773255710418,1.48907264,87.766,87.73,0.2]
[1773255710419,1.48907264,87.75,87.73,0.2]
[1773255711226,1.48907264,87.766,87.73,0.2]
[1773255711535,1.48907264,87.759,87.73,0.2]
[1773255712241,1.48907264,87.757,87.73,0.2]
[1773255712743,2.90457902,87.77,87.731,0.51715504]
[1773255712952,11.39269846,87.776,87.75,2.90457902]
[1773255713145,11.39269846,87.776,87.75,3.42173406]
[1773255713320,11.39269846,87.776,87.73,40.09505573]
[1773255713321,1.48907264,87.775,87.741,0.51709919]
[1773255715065,11.39289539,87.774,87.743,0.51704398]
[1773255715247,11.39289539,87.774,87.75,2.90457902]
[1773255715446,1.48907264,87.773,87.743,0.51704398]
[1773255717345,1.48907264,87.769,87.73,3.10457902]
[1773255717765,1.48907264,87.759,87.73,0.2]
[1773255719469,1.48907264,87.757,87.73,0.2]
[1773255719672,1.48907264,87.757,87.73,1e-08]
[1773255719967,1.48907264,87.749,87.73,1e-08]
[1773255720839,1.48907264,87.749,87.71,3.10457902]
[1773255721048,2.90457902,87.75,87.71,3.10457902]
[1773255721049,1.48907264,87.729,87.71,1e-08]
[1773255721350,1.48907264,87.727,87.689,11.40389608]
[1773255721555,1.48907264,87.727,87.69,3.10457902]
[1773255722358,1.48907264,87.727,87.69,0.2]
[1773255722560,2.90457902,87.72,87.69,0.2]
[1773255722755,1.48907264,87.709,87.68,0.2]
[1773255723062,1.48907264,87.699,87.665,0.51662454]
[1773255723361,1.48907264,87.699,87.66,2.90457902]
[1773255723362,1.48907264,87.687,87.654,0.71657479]
[1773255723570,1.48907264,87.687,87.66,7.28594824]
[1773255724147,11.40406897,87.688,87.661,0.7165256]
[1773255724559,1.48907264,87.687,87.653,12.12514823]
[1773255724758,1.48907264,87.687,87.654,0.7165256]
[1773255724961,39.91424139,87.688,87.661,0.7165256]
[1773255725148,39.91424139,87.688,87.66,7.28594824]
[1773255725149,11.40406897,87.688,87.671,0.71647698]
[1773255725350,11.40406897,87.688,87.66,7.28594824]
[1773255725351,1.48907264,87.709,87.673,0.71647698]
[1773255725668,1.48907264,87.699,87.66,7.28594824]
[1773255725863,1.48907264,87.699,87.655,0.71647698]
[1773255726047,1.48907264,87.689,87.655,0.71647698]
[1773255726449,1.48907264,87.679,87.65,0.2]
[1773255726865,1.48907264,87.679,87.65,7.48594824]
[1773255727558,1.48907264,87.677,87.65,0.2]
[1773255728383,28.51028451,87.688,87.652,0.71635626]
[1773255728666,11.40419902,87.687,87.66,8.0023045]
[1773255728970,1.48907264,87.686,87.651,0.71635626]
[1773255729967,1.48907264,87.679,87.65,0.2]
[1773255732072,1.48907264,87.677,87.65,0.2]
[1773255733490,12.89470245,87.676,87.65,0.2]
[1773255733871,1.48907264,87.675,87.65,0.2]
[1773255734190,1.48907264,87.669,87.65,0.2]
[1773255734358,1.48907264,87.659,87.64,1e-08]
[1773255734560,1.48907264,87.659,87.62,18.69886766]
[1773255735176,1.48907264,87.659,87.621,0.71621128]
[1773255735784,1.48907264,87.649,87.615,11.41345881]
[1773255736769,1.48907264,87.639,87.614,0.2945726]
[1773255736975,1.48907264,87.639,87.615,11.41357073]
[1773255737171,7.28594824,87.65,87.616,0.71614247]
[1773255737365,39.92790161,87.658,87.631,0.71614247]
[1773255737366,11.40797189,87.658,87.631,0.71614247]
[1773255737566,1.48907264,87.675,87.642,12.12619701]
[1773255737782,1.48907264,87.675,87.642,0.71614247]
[1773255738362,1.48907264,87.675,87.643,0.71612006]
[1773255739176,1.48907264,87.675,87.642,11.41005454]
[1773255739675,11.40589,87.674,87.642,11.41005454]
[1773255739873,1.48907264,87.673,87.642,11.41005454]
[1773255740383,11.40406897,87.688,87.661,0.71605437]
[1773255741068,1.45941422,87.708,87.68,7.28594824]
[1773255741294,1.45941422,87.699,87.663,0.11557469]
[1773255741587,1.45941422,87.699,87.66,7.28594824]
[1773255741757,1.45941422,87.699,87.646,0.14216157]
[1773255741758,1.45941422,87.679,87.646,11.40942334]
[1773255742178,1.45941422,87.679,87.65,7.28594824]
[1773255742380,1.45941422,87.679,87.646,11.40942334]
[1773255742573,1.45941422,87.679,87.65,7.28594824]
[1773255743462,1.45941422,87.679,87.651,0.11553262]
[1773255743764,1.45941422,87.677,87.641,11.41018473]
[1773255744764,1.45941422,87.677,87.64,7.28594824]
[1773255745068,1.45941422,87.669,87.636,11.4107156]
[1773255745267,1.45941422,87.669,87.64,7.28594824]
[1773255746064,1.45941422,87.678,87.65,7.28594824]
[1773255746875,11.40523956,87.679,87.66,7.28594824]
[1773255747458,11.40523956,87.679,87.651,0.11537235]
[1773255747663,11.40432908,87.686,87.651,0.11537235]
[1773255747878,1.45941422,87.685,87.65,7.28594824]
[1773255748184,1.45941422,87.679,87.641,11.41018473]
[1773255748778,1.45941422,87.679,87.639,2.9]
[1773255748980,1.45941422,87.679,87.64,11.41031492]
[1773255749178,1.45941422,87.679,87.641,0.11502297]
[1773255749481,1.45941422,87.679,87.65,7.28594824]
[1773255750284,12.86478386,87.678,87.651,11.40888295]
[1773255750485,1.45941422,87.677,87.651,11.40888295]
[1773255751477,12.86335314,87.689,87.66,7.28594824]
[1773255751679,1.45941422,87.688,87.66,7.28594824]
[1773255752787,28.50785923,87.696,87.64,7.28594824]
[1773255752788,1.45941422,87.679,87.64,7.28594824]
[1773255753686,1.45941422,87.679,87.65,7.28594824]
[1773255754276,1.42521606,87.706,87.66,8.00070486]
[1773255754277,1.45941422,87.688,87.66,8.00070486]
[1773255754476,12.86357451,87.688,87.66,8.00070486]
[1773255754671,12.86357451,87.688,87.661,11.40758147]
[1773255754874,12.86357451,87.688,87.67,7.28594824]
[1773255755075,1.45941422,87.687,87.661,11.40758147]
[1773255756182,12.8637433,87.686,87.66,7.28594824]
[1773255756780,1.45941422,87.694,87.67,7.28594824]
[1773255756983,1.45941422,87.694,87.661,0.71454304]
[1773255757186,1.45941422,87.694,87.66,7.28594824]
[1773255757994,39.90923499,87.699,87.648,2.9]
[1773255757995,1.45941422,87.679,87.649,11.40914328]
[1773255758194,1.45941422,87.677,87.649,11.40914328]
[1773255758575,1.45941422,87.677,87.65,7.28594824]
[1773255759681,1.45941422,87.675,87.65,2.91504225]
[1773255760383,1.45941422,87.675,87.648,14.30921681]
[1773255760885,1.45941422,87.675,87.65,2.91504225]
[1773255762202,1.49170978,87.673,87.648,14.30921681]
[1773255762701,2.91504225,87.66,87.62,2.91504225]
[1773255762911,1.49170978,87.639,87.614,1e-08]
[1773255763202,1.49170978,87.629,87.592,11.41656772]
[1773255763581,1.49170978,87.629,87.6,2.91504225]
[1773255764297,1.49170978,87.629,87.601,11.4153948]
[1773255764496,12.90357611,87.629,87.601,11.4153948]
[1773255764794,1.49170978,87.628,87.601,11.4153948]
[1773255765199,1.49170978,87.649,87.611,0.71308423]
[1773255765375,1.49170978,87.647,87.61,2.91504225]
[1773255765576,1.49170978,87.639,87.602,0.71308423]
[1773255765788,1.49170978,87.639,87.61,8.00860881]
[1773255766301,1.49170978,87.639,87.601,11.4153948]
[1773255766600,1.49170978,87.637,87.601,11.4153948]
[1773255768499,1.49170978,87.635,87.601,11.4153948]
[1773255770683,1.46762421,87.633,87.598,0.71225678]
[1773255770886,1.46762421,87.633,87.61,7.29552458]
[1773255771088,11.41109614,87.634,87.611,0.71225678]
[1773255772286,11.41109614,87.634,87.61,6.2163577]
[1773255773996,11.41109614,87.634,87.611,11.41409183]
[1773255774306,7.29552458,87.63,87.595,2.9]
[1773255774505,1.49930944,87.629,87.562,3.69383402]
[1773255774712,7.29552458,87.59,87.55,7.29552458]
[1773255774904,1.49930944,87.589,87.555,39.97487292]
[1773255775390,1.49930944,87.589,87.555,11.42139226]
[1773255775588,1.49930944,87.589,87.544,28.55696651]
[1773255775788,1.49930944,87.589,87.545,0.14216157]
[1773255775989,1.49930944,87.589,87.544,28.55696651]
[1773255776189,1.49930944,87.587,87.55,7.29552458]
[1773255776408,1.49930944,87.579,87.541,39.98126591]
[1773255776591,1.49930944,87.579,87.55,7.29552458]
[1773255777098,1.49930944,87.579,87.541,39.98126591]
[1773255777800,1.49930944,87.579,87.55,7.29552458]
[1773255778198,1.49930944,87.589,87.561,11.42060963]
[1773255779405,1.49930944,87.587,87.551,11.42191408]
[1773255780206,1.49930944,87.587,87.55,7.29552458]
[1773255780409,7.29552458,87.59,87.55,7.29552458]
[1773255780410,1.49930944,87.585,87.55,7.29552458]
[1773255780588,1.49930944,87.585,87.551,11.42191408]
[1773255781308,1.49930944,87.604,87.57,7.29552458]
[1773255782712,1.49930944,87.604,87.58,7.29552458]
[1773255783211,1.49930944,87.603,87.58,7.29552458]
[1773255784713,1.49930944,87.601,87.571,28.54826369]
[1773255784902,1.49930944,87.601,87.572,11.41917507]
[1773255786812,1.49930944,87.599,87.572,11.41917507]
[1773255787310,1.49930944,87.607,87.58,7.29552458]
[1773255787497,1.49930944,87.619,87.58,7.29552458]
[1773255787698,1.49930944,87.618,87.572,11.41917507]
[1773255788098,1.49930944,87.609,87.57,7.29552458]
[1773255788413,1.49930944,87.599,87.562,11.4204792]
[1773255788708,1.49930944,87.589,87.56,2.9]
[1773255788907,1.49930944,87.579,87.541,11.42321883]
[1773255789516,7.29552458,87.57,87.54,0.2]
[1773255789707,7.29552458,87.57,87.512,3.69383402]
[1773255789708,1.49930944,87.549,87.511,2.9]
[1773255790518,1.49930944,87.569,87.54,7.29552458]
[1773255790727,1.49930944,87.569,87.55,7.29552458]
[1773255790919,1.49930944,87.585,87.516,3.69383402]
[1773255791119,1.49930944,87.585,87.54,7.29552458]
[1773255791120,1.49930944,87.579,87.54,7.29552458]
[1773255791302,1.49930944,87.579,87.55,7.29552458]
[1773255792111,1.49930944,87.579,87.54,7.29552458]
[1773255792316,41.38789303,87.586,87.513,39.99405802]
[1773255792317,1.49930944,87.569,87.52,7.29552458]
[1773255792511,1.49930944,87.549,87.501,11.42844081]
[1773255792712,1.49930944,87.539,87.501,11.42844081]
[1773255792910,1.49930944,87.537,87.5,0.2]
[1773255793112,1.49930944,87.537,87.51,7.29552458]
[1773255793321,1.49930944,87.537,87.501,11.42844081]
[1773255793322,1.49930944,87.547,87.53,7.29552458]
[1773255793536,1.49930944,87.557,87.53,7.29552458]
[1773255794927,1.49930944,87.557,87.518,28.56530708]
[1773255795107,1.49930944,87.557,87.53,7.29552458]
[1773255795425,1.49930944,87.556,87.53,7.29552458]
[1773255796102,1.49930944,87.578,87.54,7.29552458]
[1773255796305,1.49930944,87.577,87.54,7.29552458]
[1773255796505,1.49930944,87.569,87.53,7.29552458]
[1773255797422,1.49930944,87.567,87.531,11.42452388]
[1773255797628,1.49930944,87.567,87.55,7.29552458]
[1773255797922,1.49930944,87.567,87.54,7.29552458]
[1773255798824,1.49930944,87.567,87.515,0.14216157]
[1773255798825,1.49930944,87.567,87.55,7.29552458]
[1773255799521,2.9,87.584,87.513,39.99405802]
[1773255799522,1.49930944,87.565,87.513,39.99405802]
[1773255799726,1.49930944,87.559,87.52,7.29552458]
[1773255800427,1.49930944,87.559,87.48,11.63111824]
[1773255800428,1.49930944,87.529,87.48,11.63111824]
[1773255800617,1.42760881,87.559,87.48,18.92664282]
[1773255800820,1.49930944,87.552,87.51,7.29552458]
[1773255801127,1.49930944,87.549,87.51,7.29552458]
[1773255801638,1.49930944,87.539,87.51,7.29552458]
[1773255801818,39.97350327,87.558,87.491,11.42974705]
[1773255801819,1.49930944,87.547,87.52,7.29552458]
[1773255802623,1.49930944,87.557,87.53,7.29552458]
[1773255802828,1.49930944,87.555,87.492,3.69383402]
[1773255803006,1.49930944,87.555,87.52,7.29552458]
[1773255803517,11.42099474,87.559,87.53,7.29552458]
[1773255803703,1.49930944,87.561,87.53,7.29552458]
[1773255803900,1.49930944,87.561,87.515,0.14216157]
[1773255803901,1.49930944,87.575,87.55,7.29552458]
[1773255804208,1.49930944,87.586,87.56,7.29552458]
[1773255804407,1.49930944,87.586,87.57,7.29552458]
[1773255804602,11.41748016,87.585,87.57,7.29552458]
[1773255804803,1.49930944,87.586,87.57,7.29552458]
[1773255806009,1.49930944,87.607,87.571,11.41930547]
[1773255806224,1.49930944,87.607,87.58,7.29552458]
[1773255806403,1.49930944,87.606,87.59,7.29552458]
[1773255806817,1.49930944,87.606,87.58,7.29552458]
[1773255807134,1.49930944,87.606,87.581,11.41800162]
[1773255807317,11.41487358,87.605,87.581,11.41800162]
[1773255807833,1.49930944,87.606,87.59,7.29552458]
[1773255808332,1.49930944,87.616,87.59,7.29552458]
[1773255808628,1.49930944,87.627,87.6,7.29552458]
[1773255808830,1.49930944,87.638,87.61,7.29552458]
[1773255809021,39.93655792,87.639,87.581,39.96300567]
[1773255809022,1.49930944,87.636,87.601,11.4153948]
[1773255809617,1.49930944,87.636,87.61,7.29552458]
[1773255809812,1.49930944,87.636,87.6,7.29552458]
[1773255811130,7.29552458,87.63,87.592,11.41647038]
[1773255811310,1.49930944,87.629,87.6,7.29552458]
[1773255811627,1.49930944,87.619,87.58,7.29552458]
[1773255811830,7.29552458,87.62,87.57,7.29552458]
[1773255811831,1.49930944,87.617,87.57,7.29552458]
[1773255812030,1.49930944,87.599,87.56,7.29552458]
[1773255812230,1.49930944,87.599,87.58,7.29552458]
[1773255813624,11.41578574,87.598,87.573,11.41902874]
[1773255813935,11.41578574,87.598,87.57,7.29552458]
[1773255813936,1.49930944,87.597,87.57,7.29552458]
[1773255814934,1.49930944,87.595,87.571,11.41930547]
[1773255817331,10.19552458,87.62,87.571,11.41930547]
[1773255817332,12.91248938,87.618,87.58,7.29552458]
[1773255817634,1.49930944,87.617,87.59,7.29552458]
[1773255817818,1.49930944,87.617,87.6,7.29552458]
[1773255818234,1.49930944,87.628,87.6,7.29552458]
[1773255818542,1.49930944,87.628,87.61,7.29552458]
[1773255818720,1.49930944,87.626,87.575,0.14216157]
[1773255818919,1.49930944,87.626,87.6,7.29552458]
[1773255819319,1.49930944,87.624,87.6,7.29552458]
[1773255819920,1.49930944,87.624,87.59,7.29552458]
[1773255820125,1.49930944,87.624,87.6,7.29552458]
[1773255820943,1.49930944,87.624,87.59,7.29552458]
[1773255821128,1.49930944,87.624,87.6,7.29552458]
[1773255821446,1.49930944,87.622,87.6,7.29552458]
[1773255821750,1.49930944,87.622,87.6,7.2953062]
[1773255822844,1.49930944,87.622,87.59,7.2953062]
[1773255824940,7.2953062,87.62,87.569,11.41956628]
[1773255825142,1.49930944,87.619,87.57,7.2953062]
[1773255825441,1.49930944,87.619,87.58,7.2953062]
[1773255825752,1.49930944,87.617,87.58,7.2953062]
[1773255825952,1.49930944,87.615,87.58,7.2953062]
[1773255826348,1.49930944,87.613,87.572,11.41910596]
[1773255827232,1.49930944,87.609,87.57,7.2953062]
[1773255827440,1.49930944,87.599,87.567,11.41970632]
[1773255828158,1.49930944,87.599,87.562,11.42036443]
[1773255828548,1.49930944,87.597,87.562,11.42036443]
[1773255829762,1.49930944,87.595,87.57,7.2953062]
[1773255829946,1.49930944,87.629,87.58,7.2953062]
[1773255830141,1.49930944,87.627,87.581,4.04180016]
[1773255830344,1.49930944,87.627,87.59,7.2953062]
[1773255831463,1.49930944,87.625,87.591,11.41669806]
[1773255831662,1.49930944,87.625,87.6,7.2953062]
[1773255832566,1.49930944,87.625,87.591,11.41669806]
[1773255832962,11.41213794,87.626,87.61,7.2953062]
[1773255833258,1.49930944,87.632,87.61,7.2953062]
[1773255833667,1.49930944,87.64,87.61,7.2953062]
[1773255834171,1.49930944,87.639,87.6,7.2953062]
[1773255834661,1.49930944,87.639,87.601,11.4153948]
[1773255835564,1.49930944,87.637,87.6,7.2953062]
[1773255836267,1.49930944,87.637,87.601,11.4153948]
[1773255837170,1.49930944,87.637,87.61,7.2953062]
[1773255837465,1.49930944,87.637,87.601,11.4153948]
[1773255837466,1.49930944,87.647,87.62,7.2953062]
[1773255837673,1.49930944,87.646,87.61,7.2953062]
[1773255840889,1.49930944,87.644,87.611,11.41409183]
[1773255841388,1.49930944,87.644,87.62,7.2953062]
[1773255841781,0.14216157,87.666,87.611,11.41409183]
[1773255841782,11.40907879,87.65,87.63,7.2953062]
[1773255842283,11.4082442,87.656,87.63,7.2953062]
[1773255842490,1.49930944,87.655,87.62,7.2953062]
[1773255842670,1.49930944,87.655,87.612,1.14139615]
[1773255842870,0.14216157,87.666,87.591,11.41669806]
[1773255842871,1.49930944,87.629,87.591,11.41669806]
[1773255843078,1.49930944,87.629,87.59,7.2953062]
[1773255843292,1.49930944,87.619,87.58,7.2953062]
[1773255843483,1.49930944,87.619,87.59,7.2953062]
[1773255844091,1.49930944,87.635,87.61,7.2953062]
[1773255845376,11.41048919,87.639,87.62,7.2953062]
[1773255845784,1.49930944,87.671,87.63,7.2953062]
[1773255845971,1.49930944,87.67,87.64,7.2953062]
[1773255847177,1.49930944,87.67,87.65,7.2953062]
[1773255847377,11.40654051,87.669,87.65,7.2953062]
[1773255847582,1.49930944,87.668,87.647,11.40934505]
[1773255849480,1.49930944,87.668,87.641,11.41018473]
[1773255849984,11.40680073,87.667,87.641,11.41018473]
[1773255850184,1.49930944,87.666,87.641,11.41018473]
[1773255850900,1.49930944,87.675,87.65,7.2953062]
[1773255851083,1.49930944,87.675,87.641,11.41018473]
[1773255851287,1.49930944,87.674,87.64,7.2953062]
[1773255851699,39.92107033,87.673,87.64,7.2953062]
[1773255851904,1.49930944,87.672,87.64,7.2953062]
[1773255852699,1.49930944,87.669,87.631,11.41146785]
[1773255853698,2.9,87.696,87.66,7.2953062]
[1773255853891,11.40263857,87.699,87.66,7.2953062]
[1773255854091,7.2953062,87.69,87.651,11.40888295]
[1773255854291,7.2953062,87.69,87.651,39.93109034]
[1773255854594,11.40263857,87.699,87.67,7.2953062]
[1773255855107,11.40263857,87.699,87.664,1.4096496]
[1773255855908,1.43069809,87.696,87.665,11.40706097]
[1773255856608,1.43069809,87.696,87.661,11.4075431]
[1773255858605,1.43069809,87.694,87.66,7.2953062]
[1773255858795,1.43069809,87.694,87.661,11.40758147]
[1773255858993,1.43069809,87.694,87.644,1.14097941]
[1773255858994,1.43069809,87.689,87.651,1.4096496]
[1773255859196,1.43069809,87.689,87.653,1.4096496]
[1773255859605,1.43069809,87.689,87.661,1.4096496]
[1773255860295,1.41503713,87.699,87.671,1.41900772]
[1773255860495,12.8177922,87.699,87.671,1.41900772]
[1773255860803,12.8177922,87.699,87.672,11.40615019]
[1773255861115,0.1,87.7,87.69,7.2953062]
[1773255861324,1.41503713,87.715,87.69,7.2953062]
[1773255861496,11.39969601,87.722,87.7,7.2953062]
[1773255861691,1.41503713,87.718,87.69,7.2953062]
[1773255862017,1.41503713,87.718,87.68,7.2953062]
[1773255863018,1.41503713,87.716,87.681,11.40497941]
[1773255863198,1.41503713,87.716,87.69,7.2953062]
[1773255863397,1.41503713,87.716,87.69,8.71431392]
[1773255863615,0.1,87.72,87.7,7.2953062]
[1773255864110,0.1,87.72,87.71,7.2953062]
[1773255864293,0.1,87.72,87.7,8.71431392]
[1773255865802,0.1,87.72,87.701,11.40237853]
[1773255866700,1.41503713,87.729,87.71,7.2953062]
[1773255867098,1.41503713,87.729,87.701,11.40237853]
[1773255868216,11.39886923,87.728,87.701,11.40237853]
[1773255868514,1.41503713,87.727,87.71,7.2953062]
[1773255869505,1.41503713,87.727,87.701,12.78348243]
[1773255870815,11.3991291,87.726,87.701,12.78348243]
[1773255871516,12.81416623,87.726,87.701,12.78348243]
[1773255872098,12.81416623,87.726,87.688,2.9]
[1773255872099,1.5571987,87.709,87.66,2.91144476]
[1773255872293,1.41503713,87.699,87.653,1.38078212]
[1773255872513,2.9,87.698,87.653,1.38078212]
[1773255872723,1.41503713,87.697,87.653,1.38078212]
[1773255873418,1.41503713,87.697,87.639,3.69383402]
[1773255873419,1.41503713,87.697,87.661,1.38056548]
[1773255873618,1.41503713,87.697,87.67,7.28467046]
[1773255873824,1.41503713,87.697,87.661,1.38056548]
[1773255874122,11.40302864,87.696,87.662,11.40745134]
[1773255874297,11.40302864,87.696,87.663,1.38045902]
[1773255874298,1.41503713,87.695,87.663,1.38045902]
[1773255874916,1.41503713,87.695,87.66,7.28467046]
[1773255876323,1.41503713,87.693,87.661,11.40758147]
[1773255876698,1.41503713,87.693,87.66,7.28467046]
[1773255878427,1.41503713,87.691,87.66,7.28467046]
[1773255879015,1.41503713,87.691,87.661,12.78762675]
[1773255879416,1.41503713,87.691,87.661,1.38004528]
[1773255879924,1.41503713,87.691,87.66,7.28467046]
[1773255880130,39.91242074,87.692,87.64,18.69488268]
[1773255880131,1.41503713,87.679,87.64,18.69488268]
[1773255880309,11.40667062,87.668,87.64,11.41021222]
[1773255880514,1.41503713,87.667,87.64,11.41021222]
[1773255880922,1.46231416,87.681,87.651,1.37974728]
[1773255882723,1.46231416,87.679,87.641,0.29226756]
[1773255882923,1.46231416,87.679,87.642,12.78960881]
[1773255883531,1.46231416,87.679,87.643,1.37945943]
[1773255884920,1.46231416,87.677,87.644,11.40979416]
[1773255885533,1.46231416,87.677,87.641,1.37927299]
[1773255886731,1.46231416,87.677,87.639,11.41044512]
[1773255886910,1.46231416,87.677,87.64,7.28782987]
[1773255887117,1.46231416,87.675,87.641,12.78927555]
[1773255887818,1.46231416,87.675,87.642,1.37909082]
[1773255888530,39.920615,87.674,87.642,1.37909082]
[1773255888737,1.46231416,87.673,87.642,1.37909082]
[1773255891936,1.37910028,87.671,87.642,1.37909082]
[1773255893746,11.40615019,87.672,87.651,1.37848536]
[1773255893921,11.40572528,87.676,87.653,1.37848536]
[1773255894247,1.37910028,87.675,87.642,11.40996607]
[1773255894435,11.40497941,87.681,87.651,1.3784028]
[1773255894858,12.78407969,87.681,87.651,1.3784028]
[1773255895151,1.37910028,87.68,87.651,1.3784028]
[1773255895643,11.40523956,87.679,87.652,1.37832118]
[1773255896038,1.37910028,87.678,87.652,1.37832118]
[1773255897835,11.40549973,87.677,87.652,1.37832118]
[1773255898038,1.37910028,87.676,87.651,11.4087602]
[1773255899029,1.37910028,87.676,87.636,2.9]
[1773255899030,1.37910028,87.676,87.637,11.41068983]
[1773255899746,1.37910028,87.676,87.637,12.7886938]
[1773255900138,2.91496711,87.68,87.64,2.91496711]
[1773255900139,1.37910028,87.674,87.64,2.91496711]
[1773255900344,1.37910028,87.674,87.637,12.7886938]
[1773255900746,1.37910028,87.674,87.64,2.91496711]
[1773255900943,1.37910028,87.674,87.637,12.7886938]
[1773255901134,2.91496711,87.67,87.636,2.9]
[1773255901443,39.92015967,87.675,87.605,1.37785079]
[1773255901444,1.37910028,87.649,87.605,1.37785079]
[1773255901831,1.37910028,87.639,87.604,2.9]
[1773255902038,1.37910028,87.629,87.59,4.2928179]
[1773255902233,1.42591515,87.663,87.582,1.37777551]
[1773255902234,1.37910028,87.619,87.582,1.37777551]
[1773255902437,1.37910028,87.619,87.535,91.39142249]
[1773255902438,1.37910028,87.609,87.571,1.37777551]
[1773255903441,1.37910028,87.609,87.581,1.3777011]
[1773255904150,1.37910028,87.617,87.583,1.37762754]
[1773255904652,1.37910028,87.617,87.59,2.91496711]
[1773255905551,1.37910028,87.617,87.584,1.81381059]
[1773255905552,1.37910028,87.628,87.601,1.37755482]
[1773255905756,1.37910028,87.643,87.611,1.37755482]
[1773255906128,1.37910028,87.639,87.602,11.41515663]
[1773255906429,1.37910028,87.639,87.595,2.9]
[1773255906645,1.37910028,87.609,87.57,2.91496711]
[1773255906838,1.37910028,87.609,87.555,0.29355143]
[1773255906839,1.37910028,87.599,87.561,1.37748295]
[1773255907945,1.37910028,87.599,87.571,1.37741189]
[1773255908336,1.37910028,87.597,87.569,11.41955114]
[1773255908541,1.37910028,87.597,87.565,11.42008527]
[1773255909254,1.37910028,87.597,87.566,1.37727223]
[1773255910036,1.37910028,87.597,87.564,11.42021835]
[1773255910241,1.37910028,87.595,87.564,11.42021835]
[1773255910551,1.37910028,87.589,87.55,1.3772036]
[1773255911144,1.37910028,87.589,87.545,11.42258918]
[1773255911752,1.37910028,87.589,87.535,0.29498247]
[1773255911753,1.37910028,87.579,87.535,0.29498247]
[1773255911944,1.37910028,87.569,87.531,1.37713575]
[1773255912140,85.62034794,87.596,87.551,1.37706869]
[1773255912141,1.37910028,87.584,87.551,1.37706869]
[1773255912341,12.79684116,87.583,87.553,1.37706869]
[1773255913858,12.79684116,87.583,87.554,11.42152271]
[1773255914164,12.79684116,87.583,87.555,1.37700239]
[1773255914744,41.34119337,87.583,87.555,1.37700239]
[1773255916046,1.37910028,87.582,87.55,2.91496711]
[1773255916246,1.37910028,87.582,87.551,1.37680804]
[1773255917858,11.41800162,87.581,87.552,11.42178362]
[1773255918169,12.7971019,87.581,87.553,1.37674474]
[1773255918871,1.37910028,87.58,87.553,1.37674474]
[1773255919874,11.41826236,87.579,87.553,1.37674474]
[1773255920254,1.42717932,87.578,87.553,1.37674474]
[1773255921869,11.41852312,87.577,87.553,1.37674474]
[1773255922177,11.41852312,87.577,87.528,61.4]
[1773255922178,1.42717932,87.594,87.561,1.37643898]
[1773255925566,1.42717932,87.592,87.561,1.37643898]
[1773255925776,39.95753084,87.593,87.548,2.9]
[1773255925777,1.42717932,87.579,87.548,2.9]
[1773255925954,1.42717932,87.579,87.55,2.91496711]
[1773255926157,1.42717932,87.579,87.532,28.56092187]
[1773255926158,1.42717932,87.569,87.533,11.42420165]
[1773255926351,1.42717932,87.569,87.541,1.37615038]
[1773255927375,97.03971777,87.593,87.561,1.37609463]
[1773255927376,1.42717932,87.588,87.561,1.37609463]
[1773255927677,11.41721945,87.587,87.562,11.4204792]
[1773255927883,11.41721945,87.587,87.563,1.37609463]
[1773255928084,1.42717932,87.586,87.563,1.37609463]
[1773255929158,11.41721945,87.587,87.563,1.37609463]
[1773255929555,12.84374704,87.592,87.563,1.37609463]
[1773255929963,1.42717932,87.591,87.563,1.37609463]
[1773255930366,1.42717932,87.591,87.564,11.42021835]
[1773255931280,1.42717932,87.591,87.565,1.37587798]
[1773255932771,1.42717932,87.589,87.56,14.33567534]
[1773255933087,1.42717932,87.589,87.551,11.42191408]
[1773255934078,1.42717932,87.589,87.552,1.37577335]
[1773255935588,2.91496711,87.58,87.546,0.29505326]
[1773255935771,1.42717932,87.579,87.541,11.42321883]
[1773255935971,1.42717932,87.579,87.541,12.79888993]
[1773255936173,1.42717932,87.579,87.542,1.37562086]
[1773255936385,1.42717932,87.579,87.55,2.91496711]
[1773255936791,1.42717932,87.579,87.551,1.37562086]
[1773255937196,1.42717932,87.579,87.551,1.3755712]
[1773255937989,1.42717932,87.577,87.551,1.3755712]
[1773255938590,1.42717932,87.577,87.532,28.56077282]
[1773255938591,1.42717932,87.559,87.525,1.3755221]
[1773255939089,1.42717932,87.559,87.52,2.91496711]
[1773255939090,1.42717932,87.549,87.51,2.91496711]
[1773255939384,1.42717932,87.549,87.511,1.37547357]
[1773255939984,1.42717932,87.555,87.521,1.37547357]
[1773255940169,1.42717932,87.553,87.521,1.37547357]
[1773255940371,1.42717932,87.549,87.514,1.3754256]